[Event "Titled Tuesday Blitz August 1 Early 2023"]
[White "Lopez Gracia, Fernando"]
[Black "sterpfi"]
[WhiteFideId "2207184"]
[WhiteElo "2361"]
[BlackElo "2160"]
[Result "1-0"]
[Round "3"]
[TimeControl "180+1"]
[Date "2023.08.01"]
[WhiteClock "0:02:25"]
[BlackClock "0:01:00"]
[Board "245"]

1. e4 {[%clk 0:02:59]}  c6 {[%clk 0:02:58]} 2. d4 {[%clk 0:02:59]}  d5 {[%clk 0:02:59]} 3. e5 {[%clk 0:02:59]}  c5 {[%clk 0:02:59]} 4. dxc5 {[%clk 0:02:59]}  e6 {[%clk 0:02:58]} 5. c3 {[%clk 0:03:00]}  Bxc5 {[%clk 0:02:58]} 6. Qg4 {[%clk 0:03:00]}  Ne7 {[%clk 0:02:52]} 7. b4 {[%clk 0:03:00]}  Bb6 {[%clk 0:02:52]} 8. Qxg7 {[%clk 0:03:00]}  Rg8 {[%clk 0:02:52]} 9. Qxh7 {[%clk 0:03:01]}  Nbc6 {[%clk 0:02:50]} 10. Nf3 {[%clk 0:03:00]}  Qc7 {[%clk 0:02:45]} 11. Bf4 {[%clk 0:02:56]}  Bd7 {[%clk 0:02:43]} 12. Na3 {[%clk 0:02:55]}  a6 {[%clk 0:02:25]} 13. Qd3 {[%clk 0:02:47]}  O-O-O {[%clk 0:02:18]} 14. g3 {[%clk 0:02:45]}  Kb8 {[%clk 0:02:05]} 15. Rb1 {[%clk 0:02:43]}  Be8 {[%clk 0:02:04]} 16. b5 {[%clk 0:02:43]}  Na5 {[%clk 0:01:49]} 17. bxa6 {[%clk 0:02:40]}  bxa6 {[%clk 0:01:49]} 18. Qxa6 {[%clk 0:02:33]}  Qxc3+ {[%clk 0:01:23]} 19. Bd2 {[%clk 0:02:31]}  Qxf3 {[%clk 0:01:06]} 20. Rxb6+ {[%clk 0:02:24]}  Kc7 {[%clk 0:01:04]} 21. Qa7+ {[%clk 0:02:24]}  Kc8 {[%clk 0:01:01]} 22. Ba6+ {[%clk 0:02:24]}  Nb7 {[%clk 0:01:00]} 23. Qxb7# {[%clk 0:02:25]} 1-0


[Site "https://www.chess.com"]

[Event "Titled Tuesday Blitz August 1 Early 2023"]
[White "Gomes, Luiz Alexandre de Souza"]
[Black "Butti, Enrique"]
[WhiteFideId "2102790"]
[BlackFideId "3700470"]
[WhiteElo "2357"]
[BlackElo "2158"]
[Result "0-1"]
[Round "3"]
[TimeControl "180+1"]
[Date "2023.08.01"]
[WhiteClock "0:00:00"]
[BlackClock "0:00:15"]
[Board "247"]

1. e4 {[%clk 0:03:00]}  c5 {[%clk 0:02:59]} 2. Nf3 {[%clk 0:03:00]}  d6 {[%clk 0:02:59]} 3. d4 {[%clk 0:03:00]}  cxd4 {[%clk 0:02:58]} 4. Nxd4 {[%clk 0:03:01]}  Nf6 {[%clk 0:02:58]} 5. Nc3 {[%clk 0:03:01]}  a6 {[%clk 0:02:58]} 6. Rg1 {[%clk 0:03:01]}  Nc6 {[%clk 0:02:48]} 7. Nb3 {[%clk 0:03:01]}  h5 {[%clk 0:02:44]} 8. h3 {[%clk 0:03:01]}  h4 {[%clk 0:02:43]} 9. Be3 {[%clk 0:03:00]}  e6 {[%clk 0:02:38]} 10. Qd2 {[%clk 0:02:56]}  Be7 {[%clk 0:02:37]} 11. f4 {[%clk 0:02:56]}  b5 {[%clk 0:02:35]} 12. Bd3 {[%clk 0:02:55]}  Bb7 {[%clk 0:02:32]} 13. O-O-O {[%clk 0:02:54]}  Rc8 {[%clk 0:02:31]} 14. Kb1 {[%clk 0:02:54]}  Na5 {[%clk 0:02:25]} 15. Qf2 {[%clk 0:02:54]}  Nc4 {[%clk 0:02:15]} 16. Bc1 {[%clk 0:02:43]}  b4 {[%clk 0:02:04]} 17. Na4 {[%clk 0:02:30]}  Nxe4 {[%clk 0:02:03]} 18. Qa7 {[%clk 0:02:22]}  Bd5 {[%clk 0:01:41]} 19. Qxa6 {[%clk 0:02:16]}  O-O {[%clk 0:01:35]} 20. Rge1 {[%clk 0:02:16]}  Nf6 {[%clk 0:01:23]} 21. f5 {[%clk 0:02:09]}  Qc7 {[%clk 0:01:19]} 22. fxe6 {[%clk 0:02:03]}  fxe6 {[%clk 0:01:18]} 23. Nd4 {[%clk 0:01:45]}  Ra8 {[%clk 0:01:05]} 24. Nb5 {[%clk 0:01:36]}  Qd7 {[%clk 0:01:04]} 25. Nb6 {[%clk 0:01:24]}  Qc6 {[%clk 0:00:48]} 26. Na7 {[%clk 0:01:15]}  Qxb6 {[%clk 0:00:45]} 27. Bxc4 {[%clk 0:01:11]}  Qxa6 {[%clk 0:00:44]} 28. Bxa6 {[%clk 0:01:11]}  Rxa7 {[%clk 0:00:45]} 29. Rxd5 {[%clk 0:01:04]}  Nxd5 {[%clk 0:00:43]} 30. Bc4 {[%clk 0:01:02]}  Nc7 {[%clk 0:00:36]} 31. Be3 {[%clk 0:00:58]}  Rb7 {[%clk 0:00:34]} 32. Bb3 {[%clk 0:00:42]}  Bf6 {[%clk 0:00:32]} 33. Rd1 {[%clk 0:00:40]}  d5 {[%clk 0:00:32]} 34. Bc5 {[%clk 0:00:37]}  Rd8 {[%clk 0:00:29]} 35. a3 {[%clk 0:00:29]}  bxa3 {[%clk 0:00:28]} 36. Bxa3 {[%clk 0:00:29]}  e5 {[%clk 0:00:27]} 37. Rf1 {[%clk 0:00:12]}  Kh8 {[%clk 0:00:25]} 38. Rf5 {[%clk 0:00:10]}  e4 {[%clk 0:00:21]} 39. Bc5 {[%clk 0:00:05]}  Kg8 {[%clk 0:00:20]} 40. Bf2 {[%clk 0:00:05]}  Kf7 {[%clk 0:00:18]} 41. Bxh4 {[%clk 0:00:04]}  Kg6 {[%clk 0:00:17]} 42. Bxf6 {[%clk 0:00:03]}  gxf6 {[%clk 0:00:16]} 43. Rf1 {[%clk 0:00:02]}  f5 {[%clk 0:00:15]} 44. g3 {[%clk 0:00:02]}  d4 {[%clk 0:00:15]} 45. h4 {[%clk 0:00:00]}  d3 {[%clk 0:00:15]} 0-1


[Site "https://www.chess.com"]

[Event "Titled Tuesday Blitz August 1 Early 2023"]
[White "Yonal, Timur"]
[Black "Larina, Maria"]
[WhiteFideId "44115725"]
[BlackFideId "24113182"]
[WhiteElo "2350"]
[BlackElo "2119"]
[Result "0-1"]
[Round "3"]
[TimeControl "180+1"]
[Date "2023.08.01"]
[WhiteClock "0:00:13"]
[BlackClock "0:00:35"]
[Board "250"]

1. e3 {[%clk 0:02:59]}  f5 {[%clk 0:02:55]} 2. d4 {[%clk 0:02:55]}  Nf6 {[%clk 0:02:55]} 3. c4 {[%clk 0:02:40]}  d6 {[%clk 0:02:54]} 4. Nc3 {[%clk 0:02:40]}  g6 {[%clk 0:02:54]} 5. Bd3 {[%clk 0:02:41]}  Bg7 {[%clk 0:02:54]} 6. Nge2 {[%clk 0:02:41]}  O-O {[%clk 0:02:53]} 7. f3 {[%clk 0:02:42]}  Nc6 {[%clk 0:02:52]} 8. Qc2 {[%clk 0:02:37]}  Nb4 {[%clk 0:02:52]} 9. Qb1 {[%clk 0:02:37]}  Nxd3+ {[%clk 0:02:52]} 10. Qxd3 {[%clk 0:02:38]}  e5 {[%clk 0:02:52]} 11. d5 {[%clk 0:02:29]}  e4 {[%clk 0:02:32]} 12. fxe4 {[%clk 0:02:07]}  fxe4 {[%clk 0:02:33]} 13. Nxe4 {[%clk 0:02:08]}  Ng4 {[%clk 0:02:33]} 14. N2g3 {[%clk 0:01:46]}  Qh4 {[%clk 0:02:16]} 15. Bd2 {[%clk 0:01:42]}  Bxb2 {[%clk 0:02:08]} 16. Rb1 {[%clk 0:01:41]}  Be5 {[%clk 0:02:08]} 17. Ke2 {[%clk 0:01:19]}  Nxh2 {[%clk 0:01:47]} 18. Bc3 {[%clk 0:00:37]}  Bxg3 {[%clk 0:01:03]} 19. Nxg3 {[%clk 0:00:33]}  Qxg3 {[%clk 0:00:58]} 20. Qd4 {[%clk 0:00:30]}  Rf2+ {[%clk 0:00:37]} 21. Kd3 {[%clk 0:00:29]}  Bf5+ {[%clk 0:00:34]} 22. Qe4 {[%clk 0:00:11]}  Bxe4+ {[%clk 0:00:35]} 23. Kxe4 {[%clk 0:00:12]}  Re8+ {[%clk 0:00:35]} 24. Kd3 {[%clk 0:00:13]}  Qxe3# {[%clk 0:00:35]} 0-1


[Site "https://www.chess.com"]

[Event "Titled Tuesday Blitz August 1 Early 2023"]
[White "Hrbek, Stepan"]
[Black "Floresvillar Gonzalez, Luis Migu"]
[WhiteFideId "393479"]
[BlackFideId "5100542"]
[WhiteElo "2349"]
[BlackElo "2114"]
[Result "1/2-1/2"]
[Round "3"]
[TimeControl "180+1"]
[Date "2023.08.01"]
[WhiteClock "0:00:20"]
[BlackClock "0:00:15"]
[Board "251"]

1. e4 {[%clk 0:03:00]}  c6 {[%clk 0:02:59]} 2. d4 {[%clk 0:03:00]}  d5 {[%clk 0:02:58]} 3. exd5 {[%clk 0:03:00]}  cxd5 {[%clk 0:02:58]} 4. Bd3 {[%clk 0:03:00]}  Nc6 {[%clk 0:02:58]} 5. c3 {[%clk 0:03:00]}  Qc7 {[%clk 0:02:52]} 6. h3 {[%clk 0:03:00]}  Nf6 {[%clk 0:02:50]} 7. Nf3 {[%clk 0:03:00]}  g6 {[%clk 0:02:48]} 8. O-O {[%clk 0:02:57]}  Bg7 {[%clk 0:02:47]} 9. Be3 {[%clk 0:02:47]}  Ne4 {[%clk 0:02:45]} 10. c4 {[%clk 0:02:26]}  Nf6 {[%clk 0:02:18]} 11. Nc3 {[%clk 0:02:20]}  dxc4 {[%clk 0:02:17]} 12. Bxc4 {[%clk 0:02:21]}  O-O {[%clk 0:02:14]} 13. Qe2 {[%clk 0:02:12]}  e6 {[%clk 0:02:12]} 14. Rac1 {[%clk 0:02:08]}  a6 {[%clk 0:02:11]} 15. Rfd1 {[%clk 0:01:58]}  Rd8 {[%clk 0:02:10]} 16. d5 {[%clk 0:01:40]}  exd5 {[%clk 0:02:08]} 17. Nxd5 {[%clk 0:01:40]}  Nxd5 {[%clk 0:02:06]} 18. Bxd5 {[%clk 0:01:41]}  Bd7 {[%clk 0:01:43]} 19. Qc4 {[%clk 0:01:30]}  Be8 {[%clk 0:01:41]} 20. Nd4 {[%clk 0:01:22]}  Qd6 {[%clk 0:01:26]} 21. Nxc6 {[%clk 0:01:17]}  bxc6 {[%clk 0:01:22]} 22. Bxf7+ {[%clk 0:01:11]}  Bxf7 {[%clk 0:01:20]} 23. Rxd6 {[%clk 0:01:12]}  Bxc4 {[%clk 0:01:14]} 24. Rxd8+ {[%clk 0:01:12]}  Rxd8 {[%clk 0:01:12]} 25. Rxc4 {[%clk 0:01:13]}  Bxb2 {[%clk 0:01:01]} 26. Rxc6 {[%clk 0:01:12]}  a5 {[%clk 0:00:56]} 27. Rc4 {[%clk 0:01:03]}  Rd1+ {[%clk 0:00:48]} 28. Kh2 {[%clk 0:01:03]}  Rd5 {[%clk 0:00:48]} 29. Rc5 {[%clk 0:00:57]}  Rxc5 {[%clk 0:00:43]} 30. Bxc5 {[%clk 0:00:58]}  a4 {[%clk 0:00:43]} 31. Kg3 {[%clk 0:00:54]}  Kf7 {[%clk 0:00:41]} 32. Kf3 {[%clk 0:00:55]}  Ke6 {[%clk 0:00:39]} 33. Ke4 {[%clk 0:00:55]}  h5 {[%clk 0:00:37]} 34. g4 {[%clk 0:00:34]}  hxg4 {[%clk 0:00:36]} 35. hxg4 {[%clk 0:00:35]}  Bc1 {[%clk 0:00:24]} 36. Bd4 {[%clk 0:00:23]}  Bd2 {[%clk 0:00:22]} 37. f4 {[%clk 0:00:21]}  Bc1 {[%clk 0:00:21]} 38. f5+ {[%clk 0:00:21]}  gxf5+ {[%clk 0:00:21]} 39. gxf5+ {[%clk 0:00:22]}  Kf7 {[%clk 0:00:21]} 40. Kd3 {[%clk 0:00:21]}  Bf4 {[%clk 0:00:12]} 41. Kc4 {[%clk 0:00:18]}  Bd6 {[%clk 0:00:11]} 42. Kb5 {[%clk 0:00:15]}  a3 {[%clk 0:00:11]} 43. Bc5 {[%clk 0:00:09]}  Bxc5 {[%clk 0:00:11]} 44. Kxc5 {[%clk 0:00:10]}  Kf6 {[%clk 0:00:11]} 45. Kb4 {[%clk 0:00:11]}  Kxf5 {[%clk 0:00:12]} 46. Kxa3 {[%clk 0:00:12]}  Ke6 {[%clk 0:00:12]} 47. Kb4 {[%clk 0:00:12]}  Kd7 {[%clk 0:00:13]} 48. a3 {[%clk 0:00:13]}  Kc7 {[%clk 0:00:13]} 49. a4 {[%clk 0:00:14]}  Kb7 {[%clk 0:00:14]} 50. Kb3 {[%clk 0:00:15]}  Ka6 {[%clk 0:00:13]} 51. Ka3 {[%clk 0:00:16]}  Ka5 {[%clk 0:00:13]} 52. Kb2 {[%clk 0:00:17]}  Ka6 {[%clk 0:00:14]} 53. Ka2 {[%clk 0:00:18]}  Ka5 {[%clk 0:00:14]} 54. Ka3 {[%clk 0:00:17]}  Ka6 {[%clk 0:00:15]} 55. Kb3 {[%clk 0:00:18]}  Ka5 {[%clk 0:00:15]} 56. Ka3 {[%clk 0:00:19]}  Ka6 {[%clk 0:00:15]} 57. Kb3 {[%clk 0:00:19]}  Ka5 {[%clk 0:00:15]} 58. Ka3 {[%clk 0:00:20]} 1/2-1/2


[Site "https://www.chess.com"]

[Event "Titled Tuesday Blitz August 1 Early 2023"]
[White "Nugumanov, Bakhtiyar"]
[Black "Topalov, Aleksandar"]
[WhiteFideId "13701797"]
[BlackFideId "925659"]
[WhiteElo "2078"]
[BlackElo "2346"]
[Result "0-1"]
[Round "3"]
[TimeControl "180+1"]
[Date "2023.08.01"]
[WhiteClock "0:00:05"]
[BlackClock "0:00:07"]
[Board "255"]

1. Nf3 {[%clk 0:03:00]}  Nf6 {[%clk 0:02:39]} 2. c4 {[%clk 0:03:00]}  g6 {[%clk 0:02:37]} 3. g3 {[%clk 0:03:00]}  Bg7 {[%clk 0:02:37]} 4. Bg2 {[%clk 0:03:01]}  O-O {[%clk 0:02:37]} 5. O-O {[%clk 0:03:01]}  d6 {[%clk 0:02:35]} 6. Nc3 {[%clk 0:03:01]}  e5 {[%clk 0:02:35]} 7. d3 {[%clk 0:03:02]}  Nc6 {[%clk 0:02:34]} 8. Rb1 {[%clk 0:03:01]}  a5 {[%clk 0:02:34]} 9. b3 {[%clk 0:03:01]}  h6 {[%clk 0:02:34]} 10. h3 {[%clk 0:03:01]}  Be6 {[%clk 0:02:34]} 11. e4 {[%clk 0:02:56]}  b6 {[%clk 0:02:28]} 12. Be3 {[%clk 0:02:45]}  Nd7 {[%clk 0:02:24]} 13. d4 {[%clk 0:02:35]}  exd4 {[%clk 0:02:18]} 14. Nxd4 {[%clk 0:02:33]}  Nxd4 {[%clk 0:02:17]} 15. Bxd4 {[%clk 0:02:34]}  Bxd4 {[%clk 0:02:10]} 16. Qxd4 {[%clk 0:02:33]}  Nc5 {[%clk 0:02:10]} 17. Qe3 {[%clk 0:02:23]}  Kh7 {[%clk 0:02:05]} 18. f4 {[%clk 0:02:22]}  Rb8 {[%clk 0:01:59]} 19. f5 {[%clk 0:02:21]}  Bd7 {[%clk 0:01:57]} 20. Nd5 {[%clk 0:02:12]}  Bc6 {[%clk 0:01:56]} 21. Rbd1 {[%clk 0:01:59]}  Bxd5 {[%clk 0:01:55]} 22. Rxd5 {[%clk 0:01:59]}  Qe7 {[%clk 0:01:52]} 23. e5 {[%clk 0:01:57]}  Rbe8 {[%clk 0:01:47]} 24. e6 {[%clk 0:01:54]}  fxe6 {[%clk 0:01:39]} 25. fxg6+ {[%clk 0:01:53]}  Kxg6 {[%clk 0:01:25]} 26. Rd4 {[%clk 0:01:49]}  Rxf1+ {[%clk 0:01:20]} 27. Bxf1 {[%clk 0:01:50]}  Rf8 {[%clk 0:00:57]} 28. Rg4+ {[%clk 0:01:48]}  Kh7 {[%clk 0:00:56]} 29. a3 {[%clk 0:01:35]}  Qf6 {[%clk 0:00:48]} 30. Rf4 {[%clk 0:01:34]}  Qg7 {[%clk 0:00:42]} 31. b4 {[%clk 0:01:27]}  axb4 {[%clk 0:00:40]} 32. axb4 {[%clk 0:01:27]}  Rxf4 {[%clk 0:00:35]} 33. Qxf4 {[%clk 0:01:28]}  Nd7 {[%clk 0:00:33]} 34. Bd3+ {[%clk 0:01:29]}  Kh8 {[%clk 0:00:33]} 35. Qf3 {[%clk 0:01:25]}  Ne5 {[%clk 0:00:29]} 36. Qe3 {[%clk 0:00:58]}  Qf6 {[%clk 0:00:18]} 37. Be2 {[%clk 0:00:53]}  Qg5 {[%clk 0:00:16]} 38. Qf2 {[%clk 0:00:44]}  Kg7 {[%clk 0:00:16]} 39. Kh2 {[%clk 0:00:40]}  Qf6 {[%clk 0:00:14]} 40. Qe3 {[%clk 0:00:39]}  Qg5 {[%clk 0:00:13]} 41. Qf2 {[%clk 0:00:35]}  Qd2 {[%clk 0:00:13]} 42. Kg2 {[%clk 0:00:27]}  Qxb4 {[%clk 0:00:13]} 43. Qf4 {[%clk 0:00:18]}  Qb2 {[%clk 0:00:08]} 44. Kf1 {[%clk 0:00:14]}  Qb1+ {[%clk 0:00:08]} 45. Kg2 {[%clk 0:00:14]}  Qf5 {[%clk 0:00:08]} 46. Qd4 {[%clk 0:00:11]}  Qf6 {[%clk 0:00:08]} 47. g4 {[%clk 0:00:11]}  Qg5 {[%clk 0:00:07]} 48. Kg3 {[%clk 0:00:09]}  Qf6 {[%clk 0:00:07]} 49. h4 {[%clk 0:00:09]}  Ng6 {[%clk 0:00:06]} 50. Qe4 {[%clk 0:00:07]}  Qxh4+ {[%clk 0:00:06]} 51. Kf3 {[%clk 0:00:07]}  Qf6+ {[%clk 0:00:06]} 52. Kg2 {[%clk 0:00:08]}  Nf4+ {[%clk 0:00:06]} 53. Kg3 {[%clk 0:00:07]}  Nxe2+ {[%clk 0:00:06]} 54. Qxe2 {[%clk 0:00:07]}  Qe5+ {[%clk 0:00:07]} 55. Qxe5+ {[%clk 0:00:05]}  dxe5 {[%clk 0:00:07]} 0-1


[Site "https://www.chess.com"]

[Event "Titled Tuesday Blitz August 1 Early 2023"]
[White "Pavlidou, Ekaterini"]
[Black "Gopal, K.N."]
[WhiteFideId "4213262"]
[BlackFideId "5001447"]
[WhiteElo "2333"]
[BlackElo "2017"]
[Result "1/2-1/2"]
[Round "3"]
[TimeControl "180+1"]
[Date "2023.08.01"]
[WhiteClock "0:01:43"]
[BlackClock "0:00:21"]
[Board "260"]

1. d4 {[%clk 0:03:00]}  g6 {[%clk 0:02:56]} 2. c4 {[%clk 0:03:01]}  Bg7 {[%clk 0:02:50]} 3. Nc3 {[%clk 0:03:01]}  d6 {[%clk 0:02:48]} 4. e4 {[%clk 0:03:00]}  Nd7 {[%clk 0:02:47]} 5. f4 {[%clk 0:02:59]}  e6 {[%clk 0:02:46]} 6. Nf3 {[%clk 0:03:00]}  Ne7 {[%clk 0:02:44]} 7. h4 {[%clk 0:02:57]}  h5 {[%clk 0:02:41]} 8. Be2 {[%clk 0:02:51]}  c5 {[%clk 0:02:35]} 9. d5 {[%clk 0:02:50]}  exd5 {[%clk 0:02:31]} 10. cxd5 {[%clk 0:02:48]}  O-O {[%clk 0:02:30]} 11. f5 {[%clk 0:02:44]}  gxf5 {[%clk 0:02:26]} 12. Bg5 {[%clk 0:02:44]}  f6 {[%clk 0:02:21]} 13. Bf4 {[%clk 0:02:43]}  Ne5 {[%clk 0:02:16]} 14. Nd2 {[%clk 0:02:30]}  Ng4 {[%clk 0:02:11]} 15. Nc4 {[%clk 0:02:27]}  fxe4 {[%clk 0:02:03]} 16. Nxd6 {[%clk 0:02:22]}  f5 {[%clk 0:01:59]} 17. Nxc8 {[%clk 0:02:19]}  Nxc8 {[%clk 0:01:35]} 18. d6 {[%clk 0:02:18]}  Bd4 {[%clk 0:01:32]} 19. Qb3+ {[%clk 0:02:12]}  Kh8 {[%clk 0:01:26]} 20. Nb5 {[%clk 0:02:03]}  a6 {[%clk 0:01:21]} 21. Nxd4 {[%clk 0:02:01]}  cxd4 {[%clk 0:01:12]} 22. Bxg4 {[%clk 0:02:01]}  hxg4 {[%clk 0:01:09]} 23. Be5+ {[%clk 0:02:00]}  Rf6 {[%clk 0:00:39]} 24. Bxf6+ {[%clk 0:01:58]}  Qxf6 {[%clk 0:00:36]} 25. Qxb7 {[%clk 0:01:58]}  Qxd6 {[%clk 0:00:28]} 26. Qxa8 {[%clk 0:01:56]}  Qg3+ {[%clk 0:00:27]} 27. Kd1 {[%clk 0:01:48]}  Qd3+ {[%clk 0:00:26]} 28. Kc1 {[%clk 0:01:46]}  Qe3+ {[%clk 0:00:26]} 29. Kc2 {[%clk 0:01:45]}  Qd3+ {[%clk 0:00:22]} 30. Kc1 {[%clk 0:01:45]}  Qe3+ {[%clk 0:00:22]} 31. Kd1 {[%clk 0:01:46]}  Qd3+ {[%clk 0:00:21]} 32. Ke1 {[%clk 0:01:46]}  Qe3+ {[%clk 0:00:21]} 33. Kf1 {[%clk 0:01:46]}  Qd3+ {[%clk 0:00:21]} 34. Kg1 {[%clk 0:01:46]}  Qe3+ {[%clk 0:00:20]} 35. Kh2 {[%clk 0:01:44]}  Qf4+ {[%clk 0:00:20]} 36. Kg1 {[%clk 0:01:43]}  Qe3+ {[%clk 0:00:20]} 37. Kf1 {[%clk 0:01:44]}  Qd3+ {[%clk 0:00:20]} 38. Ke1 {[%clk 0:01:43]}  Qe3+ {[%clk 0:00:21]} 39. Kf1 {[%clk 0:01:43]} 1/2-1/2


[Site "https://www.chess.com"]

[Event "Titled Tuesday Blitz August 1 Early 2023"]
[White "Sarana, Alexey"]
[Black "Talibov, Shiroghlan"]
[WhiteFideId "24133795"]
[BlackFideId "13429078"]
[WhiteElo "3105"]
[BlackElo "2846"]
[Result "1-0"]
[Round "4"]
[TimeControl "180+1"]
[Date "2023.08.01"]
[WhiteClock "0:00:06"]
[BlackClock "0:00:00"]
[Board "3"]

1. d4 {[%clk 0:03:00]}  Nf6 {[%clk 0:02:59]} 2. c4 {[%clk 0:03:01]}  e6 {[%clk 0:03:00]} 3. Nc3 {[%clk 0:03:02]}  d5 {[%clk 0:03:00]} 4. Nf3 {[%clk 0:02:58]}  c5 {[%clk 0:03:00]} 5. cxd5 {[%clk 0:02:58]}  cxd4 {[%clk 0:03:00]} 6. Qxd4 {[%clk 0:02:57]}  exd5 {[%clk 0:03:00]} 7. Bg5 {[%clk 0:02:58]}  Be7 {[%clk 0:03:00]} 8. Rd1 {[%clk 0:02:57]}  Be6 {[%clk 0:02:58]} 9. Qa4+ {[%clk 0:02:56]}  Nbd7 {[%clk 0:02:46]} 10. e3 {[%clk 0:02:53]}  O-O {[%clk 0:02:45]} 11. Nd4 {[%clk 0:02:53]}  Nc5 {[%clk 0:02:39]} 12. Qc2 {[%clk 0:02:53]}  Rc8 {[%clk 0:02:38]} 13. Bd3 {[%clk 0:02:50]}  Nfe4 {[%clk 0:02:26]} 14. Bxe7 {[%clk 0:02:49]}  Qxe7 {[%clk 0:02:26]} 15. O-O {[%clk 0:02:33]}  Nxc3 {[%clk 0:02:15]} 16. Qxc3 {[%clk 0:02:28]}  Rfd8 {[%clk 0:02:11]} 17. Qa3 {[%clk 0:02:26]}  b6 {[%clk 0:02:10]} 18. Rd2 {[%clk 0:02:22]}  g6 {[%clk 0:02:09]} 19. Rfd1 {[%clk 0:02:19]}  Rd7 {[%clk 0:02:04]} 20. Bb5 {[%clk 0:02:15]}  Rdc7 {[%clk 0:02:02]} 21. f3 {[%clk 0:02:14]}  Qf6 {[%clk 0:01:51]} 22. Ne2 {[%clk 0:02:11]}  a6 {[%clk 0:01:47]} 23. Bd3 {[%clk 0:02:08]}  Nxd3 {[%clk 0:01:46]} 24. Qxd3 {[%clk 0:02:08]}  a5 {[%clk 0:01:40]} 25. Qd4 {[%clk 0:02:07]}  Qxd4 {[%clk 0:01:32]} 26. Nxd4 {[%clk 0:02:08]}  Rc5 {[%clk 0:01:30]} 27. Kf2 {[%clk 0:02:01]}  Kg7 {[%clk 0:01:30]} 28. h4 {[%clk 0:02:01]}  h5 {[%clk 0:01:29]} 29. Ne2 {[%clk 0:02:01]}  Kf6 {[%clk 0:01:29]} 30. Nc3 {[%clk 0:01:57]}  Ke5 {[%clk 0:01:14]} 31. Rd4 {[%clk 0:01:28]}  b5 {[%clk 0:01:12]} 32. R1d2 {[%clk 0:01:27]}  b4 {[%clk 0:01:10]} 33. Ne2 {[%clk 0:01:28]}  Rc2 {[%clk 0:01:07]} 34. Nf4 {[%clk 0:01:23]}  Rxd2+ {[%clk 0:01:00]} 35. Rxd2 {[%clk 0:01:23]}  Rc7 {[%clk 0:00:56]} 36. Ne2 {[%clk 0:01:12]}  Bf5 {[%clk 0:00:42]} 37. Nd4 {[%clk 0:01:12]}  Bd7 {[%clk 0:00:41]} 38. b3 {[%clk 0:01:12]}  Rc1 {[%clk 0:00:39]} 39. Ne2 {[%clk 0:01:01]}  Rc5 {[%clk 0:00:37]} 40. Nd4 {[%clk 0:00:55]}  Rc1 {[%clk 0:00:36]} 41. Ke2 {[%clk 0:00:50]}  Rh1 {[%clk 0:00:31]} 42. Rd1 {[%clk 0:00:39]}  Rxd1 {[%clk 0:00:23]} 43. Kxd1 {[%clk 0:00:40]}  f6 {[%clk 0:00:23]} 44. Kd2 {[%clk 0:00:33]}  Kd6 {[%clk 0:00:21]} 45. Kc2 {[%clk 0:00:31]}  Ke5 {[%clk 0:00:19]} 46. Kb2 {[%clk 0:00:31]}  Kd6 {[%clk 0:00:19]} 47. a3 {[%clk 0:00:31]}  Kc5 {[%clk 0:00:17]} 48. axb4+ {[%clk 0:00:31]}  Kxb4 {[%clk 0:00:17]} 49. Nc2+ {[%clk 0:00:32]}  Kc5 {[%clk 0:00:15]} 50. Kc3 {[%clk 0:00:32]}  g5 {[%clk 0:00:09]} 51. g3 {[%clk 0:00:28]}  gxh4 {[%clk 0:00:09]} 52. gxh4 {[%clk 0:00:28]}  Bc8 {[%clk 0:00:09]} 53. Ne1 {[%clk 0:00:27]}  Ba6 {[%clk 0:00:05]} 54. Nc2 {[%clk 0:00:27]}  Be2 {[%clk 0:00:04]} 55. Nd4 {[%clk 0:00:27]}  Bd1 {[%clk 0:00:04]} 56. Kd2 {[%clk 0:00:26]}  Bxb3 {[%clk 0:00:03]} 57. Nxb3+ {[%clk 0:00:26]}  Kb4 {[%clk 0:00:04]} 58. Nd4 {[%clk 0:00:21]}  a4 {[%clk 0:00:04]} 59. Kc2 {[%clk 0:00:19]}  Kc4 {[%clk 0:00:05]} 60. Ne6 {[%clk 0:00:17]}  a3 {[%clk 0:00:04]} 61. Nf4 {[%clk 0:00:18]}  d4 {[%clk 0:00:04]} 62. exd4 {[%clk 0:00:18]}  Kxd4 {[%clk 0:00:05]} 63. Nxh5 {[%clk 0:00:18]}  f5 {[%clk 0:00:04]} 64. Ng7 {[%clk 0:00:15]}  Ke5 {[%clk 0:00:02]} 65. Kb3 {[%clk 0:00:12]}  Kf6 {[%clk 0:00:00]} 66. Nh5+ {[%clk 0:00:06]} 1-0


[Site "https://www.chess.com"]

[Event "Titled Tuesday Blitz August 1 Early 2023"]
[White "Aronian, Levon"]
[Black "Priasmoro, Novendra"]
[WhiteFideId "13300474"]
[BlackFideId "7105029"]
[WhiteElo "3066"]
[BlackElo "2789"]
[Result "1-0"]
[Round "4"]
[TimeControl "180+1"]
[Date "2023.08.01"]
[WhiteClock "0:01:07"]
[BlackClock "0:00:00"]
[Board "7"]

1. e4 {[%clk 0:03:00]}  e5 {[%clk 0:02:59]} 2. Nf3 {[%clk 0:03:00]}  Nc6 {[%clk 0:02:59]} 3. Bc4 {[%clk 0:03:00]}  Nf6 {[%clk 0:02:58]} 4. Ng5 {[%clk 0:03:00]}  d5 {[%clk 0:02:58]} 5. exd5 {[%clk 0:03:00]}  Na5 {[%clk 0:02:58]} 6. Bb5+ {[%clk 0:03:01]}  c6 {[%clk 0:02:59]} 7. dxc6 {[%clk 0:03:01]}  bxc6 {[%clk 0:03:00]} 8. Be2 {[%clk 0:03:01]}  h6 {[%clk 0:02:51]} 9. Nh3 {[%clk 0:03:02]}  Bc5 {[%clk 0:02:36]} 10. d3 {[%clk 0:03:00]}  O-O {[%clk 0:02:08]} 11. Nc3 {[%clk 0:03:00]}  Nd5 {[%clk 0:02:07]} 12. O-O {[%clk 0:02:51]}  f5 {[%clk 0:01:58]} 13. Kh1 {[%clk 0:02:51]}  Nxc3 {[%clk 0:01:54]} 14. bxc3 {[%clk 0:02:50]}  f4 {[%clk 0:01:54]} 15. Ng1 {[%clk 0:02:29]}  Bf5 {[%clk 0:01:43]} 16. Nf3 {[%clk 0:02:27]}  e4 {[%clk 0:01:40]} 17. dxe4 {[%clk 0:02:19]}  Bxe4 {[%clk 0:01:41]} 18. Bd3 {[%clk 0:02:19]}  Bd5 {[%clk 0:01:39]} 19. a4 {[%clk 0:01:39]}  Qd6 {[%clk 0:01:27]} 20. Nd4 {[%clk 0:01:31]}  f3 {[%clk 0:01:05]} 21. Nxf3 {[%clk 0:01:14]}  Bxf3 {[%clk 0:00:28]} 22. gxf3 {[%clk 0:01:15]}  Qe5 {[%clk 0:00:29]} 23. Rg1 {[%clk 0:01:12]}  Kh8 {[%clk 0:00:25]} 24. Rg6 {[%clk 0:01:09]}  Bd6 {[%clk 0:00:00]} 25. Qg1 {[%clk 0:01:07]} 1-0


[Site "https://www.chess.com"]

[Event "Titled Tuesday Blitz August 1 Early 2023"]
[White "Andreikin, Dmitry"]
[Black "Dvirnyy, Danyyil"]
[WhiteFideId "4158814"]
[BlackFideId "817570"]
[WhiteElo "3043"]
[BlackElo "2788"]
[Result "1-0"]
[Round "4"]
[TimeControl "180+1"]
[Date "2023.08.01"]
[WhiteClock "0:01:53"]
[BlackClock "0:00:00"]
[Board "8"]

1. d4 {[%clk 0:03:00]}  d6 {[%clk 0:02:57]} 2. e4 {[%clk 0:02:56]}  Nf6 {[%clk 0:02:56]} 3. Nc3 {[%clk 0:02:55]}  e5 {[%clk 0:02:55]} 4. Nf3 {[%clk 0:02:55]}  Nbd7 {[%clk 0:02:55]} 5. g4 {[%clk 0:02:55]}  Nxg4 {[%clk 0:02:48]} 6. Rg1 {[%clk 0:02:55]}  Ngf6 {[%clk 0:02:49]} 7. Bc4 {[%clk 0:02:54]}  h6 {[%clk 0:02:48]} 8. Be3 {[%clk 0:02:48]}  c6 {[%clk 0:02:48]} 9. Qe2 {[%clk 0:02:47]}  b5 {[%clk 0:02:39]} 10. Bb3 {[%clk 0:02:47]}  Qa5 {[%clk 0:02:28]} 11. O-O-O {[%clk 0:02:32]}  Ba6 {[%clk 0:02:03]} 12. dxe5 {[%clk 0:02:31]}  b4 {[%clk 0:01:44]} 13. Qe1 {[%clk 0:02:29]}  bxc3 {[%clk 0:01:06]} 14. exf6 {[%clk 0:02:28]}  cxb2+ {[%clk 0:01:05]} 15. Kxb2 {[%clk 0:02:23]}  Qxe1 {[%clk 0:00:57]} 16. Rgxe1 {[%clk 0:02:16]}  Nxf6 {[%clk 0:00:34]} 17. e5 {[%clk 0:02:14]}  Ng4 {[%clk 0:00:16]} 18. exd6 {[%clk 0:02:01]}  Nxe3 {[%clk 0:00:03]} 19. Rxe3+ {[%clk 0:01:56]}  Kd8 {[%clk 0:00:04]} 20. Ne5 {[%clk 0:01:56]}  Kc8 {[%clk 0:00:00]} 21. Nxf7 {[%clk 0:01:53]} 1-0


[Site "https://www.chess.com"]